[Event "TBMM Kupasi Prel 2022"]
[Site "Ankara"]
[Date "2022.03.17"]
[Round "1"]
[White "Can, Isik"]
[Black "Gurel, Ediz"]
[Result "0-1"]
[ECO "B47"]
[WhiteElo "2426"]
[BlackElo "2380"]
[Annotator "ChessBase"]
[PlyCount "66"]
[EventDate "2022.03.17"]
[EventType "tourn"]
[EventCountry "TUR"]
[SourceTitle "playchess.com"]
[Source "ChessBase"]
[SourceQuality "1"]
[TimeControl "3600+30"]

1. e4 {[%emt 0:01:00]} c5 {[%emt 0:01:00]} 2. Nf3 {[%emt 0:00:30]} e6 {[%emt 0:00:00]} 3. d4 {[%emt 0:00:00]} cxd4 {[%emt 0:00:00]} 4. Nxd4 {[%emt 0:00:00]} Nc6 {[%emt 0:00:30]} 5. Nc3 {[%emt 0:00:30]} Qc7 {[%emt 0:00:00]} 6. f4 {[%emt 0:00:00]} a6 {[%emt 0:00:00]} 7. Nxc6 {[%emt 0:00:00]} Qxc6 {[%emt 0:00:30]} 8. Bd3 {[%emt 0:00:00]} b5 {[%emt 0:00:30]} 9. Qe2 {[%emt 0:01:00]} Bb7 {[%emt 0:00:30]} 10. Bd2 {[%emt 0:00:00]} Rc8 {[%emt 0:00:00]} 11. a3 {[%emt 0:03:00]} h5 {[%emt 0:01:00]} 12. O-O-O {[%emt 0:09:30]} b4 {[%emt 0:00:30]} 13. axb4 {[%emt 0:00:30]} Bxb4 {[%emt 0:00:30]} 14. Rhf1 {[%emt 0:15:30]} Nf6 {[%emt 0:11:30]} 15. e5 {[%emt 0:04:30]} Bxc3 {[%emt 0:02:30]} 16. Bxc3 {[%emt 0:00:00]} Nd5 {[%emt 0:00:30]} 17. Bd2 {[%emt 0:03:00]} Qa4 {[%emt 0:06:30]} 18. Kb1 {[%emt 0:01:30]} Bc6 {[%emt 0:02:30]} 19. f5 {[%emt 0:10:40]} Rb8 {[%emt 0:02:30]} 20. Bc4 {[%emt 0:07:01]} Bb5 {[%emt 0:03:30]} 21. Bxb5 {[%emt 0:00:38]} axb5 {[%emt 0:04:30]} 22. b3 {[%emt 0:06:07]} Qa3 {[%emt 0:01:30]} 23. Qf3 {[%emt 0:01:39]} O-O {[%emt 0:04:30]} 24. Bc1 {[%emt 0:00:28]} Qc5 {[%emt 0:00:30]} 25. Bb2 {[%emt 0:04:04]} Ne3 {[%emt 0:07:30]} 26. Qf2 {[%emt 0:00:01]} Rbc8 {[%emt 0:00:00]} 27. Ba3 {[%emt 0:00:34]} Qxa3 {[%emt 0:02:55]} 28. Qxe3 {[%emt 0:00:01]} Rc7 {[%emt 0:01:44]} 29. Qc1 {[%emt 0:01:51]} Qc5 {[%emt 0:01:57]} 30. Qb2 {[%emt 0:00:48]} Ra8 {[%emt 0:02:00]} 31. f6 {[%emt 0:00:58]} Rca7 {[%emt 0:02:15]} 32. fxg7 {[%emt 0:00:14]} b4 {[%emt 0:01:16]} 33. Kc1 {[%emt 0:00:52]} Qc3 {[%emt 0:00:59]} 0-1

[Event "TBMM Kupasi Prel 2022"]
[Site "Ankara"]
[Date "2022.03.17"]
[Round "1"]
[White "Caglar, Sila"]
[Black "Haznedaroglu, Kivanc"]
[Result "1/2-1/2"]
[ECO "B03"]
[WhiteElo "2200"]
[BlackElo "2442"]
[Annotator "ChessBase"]
[PlyCount "190"]
[EventDate "2022.03.17"]
[EventType "tourn"]
[EventCountry "TUR"]
[SourceTitle "playchess.com"]
[Source "ChessBase"]
[SourceQuality "1"]
[TimeControl "3600+30"]

1. e4 {[%emt 0:01:00]} Nf6 {[%emt 0:01:00]} 2. e5 {[%emt 0:00:30]} Nd5 {[%emt 0:00:30]} 3. d4 {[%emt 0:00:30]} d6 {[%emt 0:00:00]} 4. c4 {[%emt 0:00:00]} Nb6 {[%emt 0:00:00]} 5. exd6 {[%emt 0:00:00]} exd6 {[%emt 0:00:00]} 6. Nc3 {[%emt 0:00:00]} Be7 {[%emt 0:00:00]} 7. Bd3 {[%emt 0:00:00]} O-O {[%emt 0:00:30]} 8. h3 {[%emt 0:00:30]} Bf6 {[%emt 0:05:30]} 9. Nge2 {[%emt 0:00:00]} c6 {[%emt 0:03:30]} 10. O-O {[%emt 0:01:00]} Na6 {[%emt 0:00:30]} 11. a3 {[%emt 0:14:30]} Nc7 {[%emt 0:00:30]} 12. Be3 {[%emt 0:04:30]} Re8 {[%emt 0:03:30]} 13. b3 {[%emt 0:07:30]} d5 {[%emt 0:03:30]} 14. c5 {[%emt 0:00:30]} Nd7 {[%emt 0:00:00]} 15. Qd2 {[%emt 0:04:30]} Ne6 {[%emt 0:02:00]} 16. b4 {[%emt 0:00:30]} Ndf8 {[%emt 0:05:30]} 17. b5 {[%emt 0:03:30]} g6 {[%emt 0:01:30]} 18. Na2 {[%emt 0:10:30]} Ng7 {[%emt 0:17:30]} 19. Nb4 {[%emt 0:00:47]} Qd7 {[%emt 0:01:30]} 20. a4 {[%emt 0:00:41]} Nfe6 {[%emt 0:01:30]} 21. Ra3 {[%emt 0:03:22]} Nc7 {[%emt 0:00:30]} 22. Nc3 {[%emt 0:01:04]} Nge6 {[%emt 0:00:30]} 23. b6 {[%emt 0:01:32]} axb6 {[%emt 0:04:29]} 24. cxb6 {[%emt 0:00:01]} Be7 {[%emt 0:04:20]} 25. Rb3 {[%emt 0:08:18]} Bxb4 {[%emt 0:00:30]} 26. Rxb4 {[%emt 0:00:00]} Na6 {[%emt 0:00:00]} 27. Rb2 {[%emt 0:02:13]} Qe7 {[%emt 0:00:06]} 28. Ne2 {[%emt 0:00:39]} Bd7 {[%emt 0:02:12]} 29. a5 {[%emt 0:01:02]} Rec8 {[%emt 0:02:04]} 30. Rc1 {[%emt 0:01:13]} Ng7 {[%emt 0:00:24]} 31. Nf4 {[%emt 0:00:41]} Bf5 {[%emt 0:01:27]} 32. Bf1 {[%emt 0:01:28]} Qd6 {[%emt 0:03:28]} 33. f3 {[%emt 0:01:29]} h5 {[%emt 0:00:33]} 34. g4 {[%emt 0:00:38]} Bd7 {[%emt 0:02:28]} 35. Nd3 {[%emt 0:00:10]} hxg4 {[%emt 0:02:23]} 36. hxg4 {[%emt 0:00:30]} Qg3+ {[%emt 0:00:23]} 37. Qg2 {[%emt 0:00:07]} Qxg2+ {[%emt 0:00:30]} 38. Kxg2 {[%emt 0:00:30]} Ne6 {[%emt 0:00:00]} 39. Ne5 {[%emt 0:00:00]} Be8 {[%emt 0:00:00]} 40. f4 {[%emt 0:02:27]} f6 {[%emt 0:03:49]} 41. Nf3 {[%emt 0:01:11]} Bd7 {[%emt 0:00:40]} 42. Bd3 {[%emt 0:00:33]} Kf7 {[%emt 0:01:06]} 43. g5 {[%emt 0:00:10]} Nf8 {[%emt 0:00:45]} 44. gxf6 {[%emt 0:01:05]} Bf5 {[%emt 0:00:05]} 45. Ne5+ {[%emt 0:00:57]} Kxf6 {[%emt 0:00:02]} 46. Bxf5 {[%emt 0:00:28]} Kxf5 {[%emt 0:00:30]} 47. Kf3 {[%emt 0:00:00]} Nb8 {[%emt 0:00:23]} 48. Rg2 {[%emt 0:00:22]} Nbd7 {[%emt 0:01:03]} 49. Rg5+ {[%emt 0:01:13]} Kf6 {[%emt 0:00:01]} 50. Rcg1 {[%emt 0:00:07]} Re8 {[%emt 0:01:26]} 51. Nxd7+ {[%emt 0:00:57]} Nxd7 {[%emt 0:00:30]} 52. Rxg6+ {[%emt 0:00:00]} Ke7 {[%emt 0:00:00]} 53. Bf2 {[%emt 0:00:49]} Nf8 {[%emt 0:00:44]} 54. Bh4+ {[%emt 0:00:24]} Kd7 {[%emt 0:00:34]} 55. Rg7+ {[%emt 0:00:05]} Kd6 {[%emt 0:00:00]} 56. f5 {[%emt 0:01:03]} c5 {[%emt 0:00:00]} 57. Bg3+ {[%emt 0:01:00]} Kc6 {[%emt 0:00:23]} 58. Rc7+ {[%emt 0:00:30]} Kb5 {[%emt 0:00:00]} 59. Rxc5+ {[%emt 0:00:00]} Ka6 {[%emt 0:00:00]} 60. Rxd5 {[%emt 0:00:00]} Rac8 {[%emt 0:00:00]} 61. Bc7 {[%emt 0:00:05]} Nh7 {[%emt 0:00:10]} 62. Rg6 {[%emt 0:00:46]} Rf8 {[%emt 0:00:00]} 63. Kf4 {[%emt 0:00:59]} Rf7 {[%emt 0:00:21]} 64. Re5 {[%emt 0:00:35]} Nf8 {[%emt 0:00:29]} 65. Rh6 {[%emt 0:00:28]} Nd7 {[%emt 0:00:07]} 66. d5 {[%emt 0:00:46]} Nxe5 {[%emt 0:00:16]} 67. Kxe5 {[%emt 0:00:06]} Rcf8 {[%emt 0:01:49]} 68. f6 {[%emt 0:00:06]} Re8+ {[%emt 0:00:30]} 69. Kf5 {[%emt 0:00:30]} Kxa5 {[%emt 0:00:00]} 70. Rg6 {[%emt 0:00:14]} Re2 {[%emt 0:02:17]} 71. d6 {[%emt 0:00:17]} Kb5 {[%emt 0:00:57]} 72. Rg5 {[%emt 0:00:20]} Kc6 {[%emt 0:00:57]} 73. Kg6 {[%emt 0:00:03]} Rd7 {[%emt 0:00:00]} 74. Rf5 {[%emt 0:02:25]} Rg2+ {[%emt 0:00:33]} 75. Rg5 {[%emt 0:00:15]} Rf2 {[%emt 0:00:00]} 76. Rg1 {[%emt 0:00:36]} Kd5 {[%emt 0:01:10]} 77. Rd1+ {[%emt 0:00:30]} Kc6 {[%emt 0:00:00]} 78. Re1 {[%emt 0:00:03]} Rf3 {[%emt 0:02:28]} 79. Re7 {[%emt 0:00:30]} Rg3+ {[%emt 0:00:30]} 80. Kf7 {[%emt 0:00:00]} Rg1 {[%emt 0:00:06]} 81. Ke8 {[%emt 0:00:49]} Rg8+ {[%emt 0:00:30]} 82. Kf7 {[%emt 0:00:03]} Rh8 {[%emt 0:00:26]} 83. Kg7 {[%emt 0:01:08]} Rh1 {[%emt 0:00:01]} 84. f7 {[%emt 0:00:00]} Rg1+ {[%emt 0:00:30]} 85. Kf8 {[%emt 0:00:28]} Ra1 {[%emt 0:00:00]} 86. Kg7 {[%emt 0:01:47]} Rg1+ {[%emt 0:00:00]} 87. Kf6 {[%emt 0:00:00]} Rf1+ {[%emt 0:00:00]} 88. Kg6 {[%emt 0:00:54]} Rg1+ {[%emt 0:00:21]} 89. Kh7 {[%emt 0:00:00]} Rf1 {[%emt 0:00:00]} 90. Kg8 {[%emt 0:00:15]} Rg1+ {[%emt 0:00:00]} 91. Kf8 {[%emt 0:00:30]} Ra1 {[%emt 0:00:00]} 92. Bb8 {[%emt 0:00:50]} Rd8+ {[%emt 0:04:58]} 93. Re8 {[%emt 0:00:30]} Kd7 {[%emt 0:00:00]} 94. Bc7 {[%emt 0:00:00]} Rc8 {[%emt 0:00:00]} 95. Kg7 {[%emt 0:01:46]} Rg1+ {[%emt 0:00:00]} 1/2-1/2

[Event "TBMM Kupasi Prel 2022"]
[Site "Ankara"]
[Date "2022.03.17"]
[Round "1"]
[White "Aydin, Gulenay"]
[Black "Yarar, Bora"]
[Result "1/2-1/2"]
[ECO "B10"]
[WhiteElo "2069"]
[BlackElo "2424"]
[Annotator "ChessBase"]
[PlyCount "102"]
[EventDate "2022.03.17"]
[EventType "tourn"]
[EventCountry "TUR"]
[SourceTitle "playchess.com"]
[Source "ChessBase"]
[SourceQuality "1"]
[TimeControl "3600+30"]

1. e4 {[%emt 0:01:00]} c6 {[%emt 0:01:00]} 2. Nf3 {[%emt 0:00:30]} d5 {[%emt 0:01:30]} 3. d3 {[%emt 0:00:30]} Bg4 {[%emt 0:02:30]} 4. h3 {[%emt 0:01:30]} Bh5 {[%emt 0:01:30]} 5. g4 {[%emt 0:05:30]} dxe4 {[%emt 0:04:30]} 6. dxe4 {[%emt 0:03:30]} Qxd1+ {[%emt 0:00:30]} 7. Kxd1 {[%emt 0:00:00]} Bg6 {[%emt 0:00:30]} 8. Bd3 {[%emt 0:02:00]} Nd7 {[%emt 0:01:30]} 9. Be3 {[%emt 0:01:30]} O-O-O {[%emt 0:02:30]} 10. Nbd2 {[%emt 0:02:30]} e6 {[%emt 0:02:30]} 11. Ke2 {[%emt 0:02:30]} Bc5 {[%emt 0:04:30]} 12. a4 {[%emt 0:06:30]} Ngf6 {[%emt 0:05:30]} 13. Bxc5 {[%emt 0:12:30]} Nxc5 {[%emt 0:00:30]} 14. Ke3 {[%emt 0:00:30]} a5 {[%emt 0:05:30]} 15. Ne5 {[%emt 0:04:30]} Nfd7 {[%emt 0:00:30]} 16. Nxg6 {[%emt 0:00:30]} hxg6 {[%emt 0:00:30]} 17. Nc4 {[%emt 0:00:30]} Kc7 {[%emt 0:13:30]} 18. Nxa5 {[%emt 0:04:58]} Rh4 {[%emt 0:01:55]} 19. b4 {[%emt 0:14:44]} Nxd3 {[%emt 0:01:28]} 20. cxd3 {[%emt 0:00:06]} Rdh8 {[%emt 0:01:24]} 21. Nc4 {[%emt 0:00:12]} Rxh3+ {[%emt 0:03:49]} 22. Rxh3 {[%emt 0:00:30]} Rxh3+ {[%emt 0:00:30]} 23. f3 {[%emt 0:00:00]} f6 {[%emt 0:00:00]} 24. a5 {[%emt 0:01:17]} e5 {[%emt 0:01:50]} 25. a6 {[%emt 0:00:30]} bxa6 {[%emt 0:00:55]} 26. Rxa6 {[%emt 0:00:10]} Kb7 {[%emt 0:02:40]} 27. Ra1 {[%emt 0:01:28]} Rh2 {[%emt 0:02:28]} 28. Rc1 {[%emt 0:01:01]} Ka6 {[%emt 0:02:10]} 29. Nd6 {[%emt 0:00:44]} Kb6 {[%emt 0:00:51]} 30. Nc8+ {[%emt 0:00:40]} Kb5 {[%emt 0:01:04]} 31. Na7+ {[%emt 0:02:18]} Kxb4 {[%emt 0:00:06]} 32. Nxc6+ {[%emt 0:00:00]} Kb3 {[%emt 0:00:42]} 33. Ne7 {[%emt 0:00:27]} Nf8 {[%emt 0:00:52]} 34. d4 {[%emt 0:01:07]} exd4+ {[%emt 0:00:48]} 35. Kxd4 {[%emt 0:00:01]} Ne6+ {[%emt 0:00:59]} 36. Ke3 {[%emt 0:00:04]} g5 {[%emt 0:00:55]} 37. Nd5 {[%emt 0:00:12]} Rc2 {[%emt 0:01:12]} 38. Rb1+ {[%emt 0:01:01]} Rb2 {[%emt 0:00:56]} 39. Rxb2+ {[%emt 0:01:24]} Kxb2 {[%emt 0:00:05]} 40. f4 {[%emt 0:00:18]} gxf4+ {[%emt 0:01:36]} 41. Nxf4 {[%emt 0:00:02]} Ng5 {[%emt 0:00:24]} 42. Nh5 {[%emt 0:00:36]} Ne6 {[%emt 0:00:18]} 43. e5 {[%emt 0:00:41]} fxe5 {[%emt 0:01:01]} 44. Ke4 {[%emt 0:00:06]} g6 {[%emt 0:00:29]} 45. Ng3 {[%emt 0:01:28]} Nf4 {[%emt 0:01:18]} 46. Kxe5 {[%emt 0:00:41]} g5 {[%emt 0:00:06]} 47. Ne4 {[%emt 0:00:18]} Nh3 {[%emt 0:00:09]} 48. Kd4 {[%emt 0:00:31]} Kb3 {[%emt 0:00:58]} 49. Ke3 {[%emt 0:00:30]} Kc4 {[%emt 0:00:00]} 50. Kf3 {[%emt 0:00:00]} Kd4 {[%emt 0:00:39]} 51. Nxg5 {[%emt 0:00:21]} Nxg5+ {[%emt 0:00:30]} 1/2-1/2

[Event "TBMM Kupasi Prel 2022"]
[Site "Ankara"]
[Date "2022.03.18"]
[Round "3"]
[White "Ozen, Deniz"]
[Black "Caglar, Sila"]
[Result "1-0"]
[ECO "B13"]
[WhiteElo "2397"]
[BlackElo "2200"]
[Annotator "RC"]
[PlyCount "75"]
[EventDate "2022.03.17"]
[EventType "tourn"]
[EventCountry "TUR"]
[SourceTitle "playchess.com"]
[Source "ChessBase"]
[SourceQuality "1"]
[TimeControl "3600+30"]

1. d4 d5 {[%emt 0:01:00]} 2. Nf3 {[%emt 0:00:30]} Nf6 {[%emt 0:00:30]} 3. Bf4 {[%emt 0:00:30]} c5 {[%emt 0:00:00]} 4. e3 {[%emt 0:00:00]} cxd4 {[%emt 0:02:00]} 5. exd4 {[%emt 0:00:00]} Nc6 {[%emt 0:00:30]} 6. c3 {[%emt 0:01:30]} Bf5 {[%emt 0:02:30]} 7. Nbd2 {[%emt 0:02:30]} h6 {[%emt 0:03:30]} 8. Qb3 {[%emt 0:03:30]} Qc8 {[%emt 0:05:30]} 9. Ne5 {[%emt 0:03:30]} g5 {[%emt 0:17:30]} 10. Bg3 {[%emt 0:02:30]} Bg7 {[%emt 0:03:30]} 11. Be2 {[%emt 0:02:30]} O-O {[%emt 0:01:30]} 12. O-O {[%emt 0:02:30]} Nxe5 {[%emt 0:06:30]} 13. Bxe5 {[%emt 0:04:30]} Ne4 {[%emt 0:06:10]} 14. Nxe4 {[%emt 0:02:30]} dxe4 {[%emt 0:00:12]} 15. Bxg7 {[%emt 0:03:30]} Kxg7 {[%emt 0:00:02]} 16. f3 {[%emt 0:03:30]} b6 {[%emt 0:03:30]} 17. fxe4 {[%emt 0:03:30]} Bxe4 {[%emt 0:00:06]} 18. Bf3 {[%emt 0:00:30]} Bxf3 {[%emt 0:03:10]} 19. Rxf3 {[%emt 0:00:30]} Qd7 {[%emt 0:03:19]} 20. Raf1 {[%emt 0:00:30]} e6 {[%emt 0:00:23]} 21. Qd1 {[%emt 0:06:30]} Qd5 {[%emt 0:02:05]} 22. Rf6 {[%emt 0:03:30]} Qd8 {[%emt 0:06:29]} 23. Qf3 {[%emt 0:01:30]} Qe7 {[%emt 0:00:30]} 24. h4 {[%emt 0:01:30]} Rad8 {[%emt 0:00:26]} 25. Qh5 {[%emt 0:04:15]} Qxf6 {[%emt 0:00:47]} 26. Rxf6 {[%emt 0:00:02]} Kxf6 {[%emt 0:00:19]} 27. Qxh6+ {[%emt 0:00:04]} Ke7 {[%emt 0:00:03]} 28. Qxg5+ {[%emt 0:00:19]} f6 {[%emt 0:00:23]} 29. Qf4 {[%emt 0:00:39]} Rg8 {[%emt 0:01:42]} 30. h5 {[%emt 0:04:04]} Rg5 {[%emt 0:00:44]} 31. h6 {[%emt 0:01:09]} e5 {[%emt 0:00:21]} 32. Qe4 {[%emt 0:00:33]} Rh8 {[%emt 0:00:45]} 33. Qb7+ {[%emt 0:01:42]} Ke6 {[%emt 0:00:05]} 34. d5+ {[%emt 0:02:53]} Kf5 {[%emt 0:00:30]} 35. h7 {[%emt 0:00:00]} Kg6 {[%emt 0:00:54]} 36. d6 {[%emt 0:00:02]} Kh6 {[%emt 0:00:32]} 37. d7 {[%emt 0:00:36]} Rg7 {[%emt 0:00:23]} 38. Qc8 {[%emt 0:00:13]} 1-0